fUSD/lending_fUSD_20250602
["ID","MTS","AMOUNT","RATE_DAILY","PERIOD"]
[363732493,1748851853974,-420.0,0.00019863,2]
[363732494,1748851853983,-420.0,0.00019863,2]
[363732495,1748851853993,-365.17,0.00019863,2]
[363732496,1748851854003,-434.99,0.00019863,2]
[363732497,1748851854012,-420.0,0.00019863,2]
[363732498,1748851854022,-420.0,0.00019863,2]
[363732499,1748851854032,-420.0,0.00019863,2]
[363732500,1748851854042,-420.0,0.00019863,2]
[363732501,1748851854051,-653.24,0.00019863,2]
[363732502,1748851854061,-420.0,0.00019863,2]
[363732503,1748851854071,-420.0,0.00019863,2]
[363732504,1748851854080,-420.0,0.00019863,2]
[363732505,1748851854090,-893.19,0.00019863,2]
[363732506,1748851854099,-516.29,0.00019863,2]
[363732507,1748851854109,-420.0,0.00019863,2]
[363732508,1748851854119,-869.93,0.00019863,2]
[363732509,1748851854128,-624.02,0.00019863,2]
[363732510,1748851854138,-420.0,0.00019863,2]
[363732511,1748851854148,-420.0,0.00019863,2]
[363732512,1748851854158,-695.55,0.00019863,2]
[363732513,1748851854168,-1095.06,0.00019863,2]
[363732514,1748851854178,-420.0,0.00019863,2]
[363732515,1748851854188,-420.0,0.00019863,2]
[363732516,1748851854198,-420.0,0.00019863,2]
[363732517,1748851854208,-420.0,0.00019863,2]
[363732518,1748851854221,-420.0,0.00019863,2]
[363732519,1748851854230,-440.61,0.00019863,2]
[363732520,1748851854240,-531.58,0.00019863,2]
[363732521,1748851854250,-3649.37,0.00019863,2]
[363732522,1748851854259,-2635.9,0.00019863,2]
[363732523,1748851854269,-1718.55,0.00019863,2]
[363732524,1748851854279,-420.0,0.00019863,2]
[363732525,1748851854289,-420.0,0.00019863,2]
[363732526,1748851854298,-151.0,0.00019863,2]
[363732527,1748851854308,-616.4,0.00019863,2]
[363732528,1748851854318,-420.0,0.00019863,2]
[363732529,1748851854328,-420.0,0.00019863,2]
[363732530,1748851854338,-420.0,0.00019863,2]
[363732531,1748851854348,-420.0,0.00019863,2]
[363732532,1748851854358,-420.0,0.00019863,2]
[363732533,1748851854368,-1552.61,0.00019863,2]
[363732534,1748851854378,-10967.4,0.00019863,2]
[363732535,1748851854388,-151.0,0.00019863,2]
[363732536,1748851854400,-420.0,0.00019863,2]
[363732537,1748851854413,-420.0,0.00019863,2]
[363732538,1748851854428,-798.41,0.00019863,2]
[363732539,1748851854442,-420.0,0.00019863,2]
[363732540,1748851854454,-420.0,0.00019863,2]
[363732541,1748851854467,-420.0,0.00019863,2]
[363732542,1748851854482,-420.0,0.00019863,2]
[363732543,1748851854495,-420.0,0.00019863,2]
[363732544,1748851854509,-2017.97,0.00019863,2]
[363732545,1748851854522,-426.03,0.00019863,2]
[363732546,1748851854535,-520.97,0.00019863,2]
[363732547,1748851854548,-420.0,0.00019863,2]
[363732548,1748851854559,-2125.91,0.00019863,2]
[363732549,1748851854570,-866.32,0.00019863,2]
[363732550,1748851854584,-495.20513984,0.00019863,2]
[363732551,1748851854597,-420.0,0.00019863,2]
[363732552,1748851854611,-642.79,0.00019863,2]
[363732553,1748851854625,-1155.76,0.00019863,2]
[363732554,1748851854637,-420.0,0.00019863,2]
[363732555,1748851854651,-420.0,0.00019863,2]
[363732556,1748851854664,-12500.0,0.00019865,2]
[363732557,1748851854677,-151.0,0.00019865,2]
[363732558,1748851854693,-151.0,0.00019865,2]
[363732559,1748851854705,-227.070894,0.00019865,2]
[363732560,1748851854719,-1252.33691278,0.00019866,2]
[363732561,1748851854733,-186.10959197,0.00019872,2]
[363732562,1748851854746,-500.0,0.00019873,2]
[363732563,1748851854758,-501.32158502,0.00019873,2]
[363732564,1748851854771,-504.45320127,0.00019873,2]
[363732565,1748851854785,-500.0,0.00019873,2]
[363732566,1748851854798,-500.0,0.00019873,2]
[363732567,1748851854812,-503.13371082,0.00019873,2]
[363732568,1748851854824,-500.0,0.00019873,2]
[363732569,1748851854834,-500.0,0.00019873,2]
[363732570,1748851854847,-164.15099253,0.00019873,2]
[363732571,1748851854858,-500.0,0.00019873,2]
[363732572,1748851854872,-12500.0,0.00019874,2]
[363732573,1748851854888,-500.0,0.00019875,2]
[363732574,1748851854899,-701.07,0.00019875,2]
[363732575,1748851854910,-1355.0,0.00019876,2]
[363732576,1748851854920,-151.0,0.00019876,2]
[363732577,1748851854932,-167.597645,0.00019876,2]
[363732578,1748851854946,-151.0,0.00019876,2]
[363732579,1748851854959,-151.0,0.00019876,2]
[363732580,1748851854970,-151.0,0.00019876,2]
[363732581,1748851854981,-151.0,0.00019876,2]
[363732582,1748851854993,-150.915,0.00019876,2]
[363732583,1748851855005,-183.411,0.00019876,2]
[363732584,1748851855016,-150.554,0.00019876,2]
[363732585,1748851855027,-275.548,0.00019876,2]
[363732586,1748851855038,-150.401,0.00019876,2]
[363732587,1748851855050,-290.175,0.00019876,2]
[363732588,1748851855064,-238.851,0.00019876,2]
[363732589,1748851855076,-213.331,0.00019876,2]
[363732590,1748851855087,-183.619,0.00019876,2]
[363732591,1748851855098,-150.887,0.00019876,2]
[363732592,1748851855110,-263.355,0.00019876,2]
[363732593,1748851855121,-204.015,0.00019876,2]
[363732594,1748851855133,-154.905,0.00019876,2]
[363732595,1748851855145,-943.0,0.00019876,2]
[363732596,1748851855157,-1467.0,0.00019876,2]
[363732597,1748851855169,-801.0,0.00019876,2]
[363732598,1748851855181,-635.0,0.00019876,2]
[363732599,1748851855193,-925.0,0.00019876,2]
[363732600,1748851855204,-557.0,0.00019876,2]
[363732601,1748851855216,-588.0,0.00019876,2]
[363732602,1748851855228,-1271.0,0.00019876,2]
[363732603,1748851855240,-431.98305386,0.00019877,2]
[363732604,1748851855252,-2000.0,0.00019879,2]
[363732605,1748851855264,-35345.8299505,0.0001988,2]
[363732606,1748851855736,-499.355093,0.00019726,2]
[363732607,1748851855747,-116.644907,0.00019726,2]
[363732608,1748851855794,-34.355093,0.00019726,2]
[363732609,1748851855808,-690.70690699,0.0001988,2]
[363732610,1748851855822,-8985.29081776,0.0001988,2]
[363732611,1748851855878,-151.0,0.00019863,2]
[363732612,1748851855890,-225.20533223,0.0001988,2]
[363732613,1748851855904,-380.39463922,0.0001988,2]
[363732614,1748852031218,150.0,0.0001862,7]
[363732615,1748852143696,559.02780901,0.00018319,2]
[363732616,1748852195866,1000.0,0.00018097,2]
[363732617,1748852262500,261.54,0.00013699,2]
[363732619,1748852301766,174.5,0.00018456,2]
[363732620,1748852361329,10000.0,0.00023,30]
[363732621,1748852374760,438.43,0.00016526,2]
[363732622,1748852375149,438.43,0.00018789,2]
[363732623,1748852383310,10025.65850285,0.00019001,2]
[363732624,1748852502830,1000.0,0.00018477,2]
[363732627,1748852622052,554.8,0.00018572,2]
[363732628,1748852629261,812.34,0.00018387,2]
[363732629,1748852772840,23900.0,0.00018424,2]
[363732630,1748852779648,1845.31566341,0.000209,30]
[363732631,1748852855788,362.15,0.00018588,2]
[363732632,1748852895547,290.05,0.00023,30]
[363732633,1748852918234,248.48565158,0.0002,30]
[363732634,1748852930742,301.4,0.00023,30]
[363732645,1748853011580,204.0,0.00018476,2]
[363732659,1748853038379,-800.0,0.000191,6]
[363732660,1748853038390,-400.0,0.00019102,2]
[363732661,1748853038401,-400.0,0.00019134,2]
[363732662,1748853038411,-151.0,0.00019166,2]
[363732663,1748853038420,-207.4,0.00019166,2]
[363732664,1748853038429,-1200.0,0.00019177,2]
[363732665,1748853038440,-420.0,0.00019178,2]
[363732666,1748853038450,-420.0,0.00019178,2]
[363732667,1748853038460,-420.0,0.00019178,2]
[363732668,1748853038470,-68.60638255,0.00019178,2]
[363732669,1748853038484,-3773.93017145,0.00019178,2]
[363732670,1748853038493,-420.0,0.00019178,2]
[363732671,1748853038502,-461.99,0.00019178,2]
[363732672,1748853038512,-2436.857435,0.00019178,2]
[363732673,1748853038521,-420.0,0.00019178,2]
[363732674,1748853038535,-420.0,0.00019178,2]
[363732675,1748853038546,-420.0,0.00019178,2]
[363732676,1748853038555,-420.0,0.00019178,2]
[363732677,1748853038565,-420.0,0.00019178,2]
[363732678,1748853038575,-420.0,0.00019178,2]
[363732679,1748853038584,-185.3,0.00019178,2]
[363732680,1748853038594,-420.0,0.00019178,2]
[363732681,1748853038603,-963.13,0.00019178,2]
[363732682,1748853038612,-420.0,0.00019178,2]
[363732683,1748853038621,-420.0,0.00019178,2]
[363732684,1748853038631,-547.32,0.00019178,2]
[363732685,1748853038641,-523.45,0.00019178,2]
[363732686,1748853038650,-420.0,0.00019178,2]
[363732687,1748853038660,-420.0,0.00019178,2]
[363732688,1748853038670,-831.74,0.00019178,2]
[363732689,1748853038679,-420.0,0.00019178,2]
[363732690,1748853038690,-420.0,0.00019178,2]
[363732691,1748853038700,-420.0,0.00019178,2]
[363732692,1748853038710,-420.0,0.00019178,2]
[363732693,1748853038719,-420.0,0.00019178,2]
[363732694,1748853038728,-420.0,0.00019178,2]
[363732695,1748853038738,-420.0,0.00019178,2]
[363732696,1748853038748,-420.0,0.00019178,2]
[363732697,1748853038757,-420.0,0.00019178,2]
[363732698,1748853038767,-420.0,0.00019178,2]
[363732699,1748853038776,-420.0,0.00019178,2]
[363732700,1748853038786,-420.0,0.00019178,2]
[363732701,1748853038796,-420.0,0.00019178,2]
[363732702,1748853038806,-420.0,0.00019178,2]
[363732703,1748853038815,-420.0,0.00019178,2]
[363732705,1748853038825,-420.0,0.00019178,2]
[363732706,1748853038834,-420.0,0.00019178,2]
[363732707,1748853038843,-420.0,0.00019178,2]
[363732708,1748853038853,-373.27,0.00019178,2]
[363732709,1748853038863,-420.0,0.00019178,2]
[363732710,1748853038872,-420.0,0.00019178,2]
[363732711,1748853038882,-420.0,0.00019178,2]
[363732712,1748853038892,-241.56770845,0.00019178,2]
[363732713,1748853038903,-122.37649356,0.00019178,2]
[363732714,1748853038928,-297.62350644,0.00019178,2]
[363732715,1748853038938,-420.0,0.00019178,2]
[363732716,1748853038947,-352.49160639,0.00019178,2]
[363732718,1748853038959,-67.50839361,0.00019178,2]
[363732720,1748853038969,-420.0,0.00019178,2]
[363732722,1748853038978,-420.0,0.00019178,2]
[363732724,1748853038987,-420.0,0.00019178,2]
[363732726,1748853038997,-420.0,0.00019178,2]
[363732727,1748853039007,-420.0,0.00019178,2]
[363732729,1748853039016,-1681.64,0.00019178,2]
[363732731,1748853039025,-420.0,0.00019178,2]
[363732734,1748853039036,-420.0,0.00019178,2]
[363732736,1748853039046,-420.0,0.00019178,2]
[363732738,1748853039055,-420.0,0.00019178,2]
[363732740,1748853039065,-420.0,0.00019178,2]
[363732742,1748853039074,-420.0,0.00019178,2]
[363732744,1748853039083,-420.0,0.00019178,2]
[363732746,1748853039092,-420.0,0.00019178,2]
[363732748,1748853039102,-420.0,0.00019178,2]
[363732750,1748853039111,-420.0,0.00019178,2]
[363732752,1748853039120,-420.0,0.00019178,2]
[363732753,1748853039131,-420.0,0.00019178,2]
[363732755,1748853039141,-420.0,0.00019178,2]
[363732757,1748853039150,-420.0,0.00019178,2]
[363732759,1748853039160,-420.0,0.00019178,2]
[363732761,1748853039169,-686.48,0.00019178,2]
[363732763,1748853039178,-539.35,0.00019178,2]
[363732765,1748853039187,-420.0,0.00019178,2]
[363732767,1748853039196,-526.68,0.00019178,2]
[363732769,1748853039206,-1148.05584949,0.00019178,2]
[363732771,1748853039218,-74.95415051,0.00019178,2]
[363732773,1748853039227,-420.0,0.00019178,2]
[363732775,1748853039237,-535.65,0.00019178,2]
[363732777,1748853039246,-420.0,0.00019178,2]
[363732779,1748853039256,-420.0,0.00019178,2]
[363732781,1748853039265,-32.98167419,0.00019178,2]
[363732784,1748853039286,-387.01832581,0.00019178,2]
[363732786,1748853039296,-420.0,0.00019178,2]
[363732788,1748853039306,-49.87090413,0.00019178,2]
[363732790,1748853039321,-116.83909587,0.00019178,2]
[363732793,1748853039330,-420.0,0.00019178,2]
[363732794,1748853039340,-420.0,0.00019178,2]
[363732796,1748853039350,-420.0,0.00019178,2]
[363732798,1748853039360,-173.36090403,0.00019178,2]
[363732801,1748853039379,-1730.49909597,0.00019178,2]
[363732803,1748853039388,-48.10530553,0.00019178,2]
[363732806,1748853039400,-371.89469447,0.00019178,2]
[363732807,1748853039409,-668.10530553,0.00019178,2]
[363732811,1748853039430,-629.48469447,0.00019178,2]
[363732813,1748853039440,-420.0,0.00019178,2]
[363732815,1748853039449,-175.56530553,0.00019178,2]
[363732915,1748853040416,-602.61469447,0.00019178,2]
[363732917,1748853040427,-420.0,0.00019178,2]
[363732919,1748853040437,-420.0,0.00019178,2]
[363732921,1748853040447,-420.0,0.00019178,2]
[363732922,1748853040457,-420.0,0.00019178,2]
[363732923,1748853040467,-420.0,0.00019178,2]
[363732924,1748853040477,-420.0,0.00019178,2]
[363732925,1748853040486,-420.0,0.00019178,2]
[363732926,1748853040496,-420.0,0.00019178,2]
[363732927,1748853040505,-423.5,0.00019178,2]
[363732928,1748853040514,-420.0,0.00019178,2]
[363732929,1748853040523,-420.0,0.00019178,2]
[363732930,1748853040533,-461.16,0.00019178,2]
[363732931,1748853040543,-420.0,0.00019178,2]
[363732932,1748853040553,-420.0,0.00019178,2]
[363732933,1748853040561,-527.2,0.00019178,2]
[363732934,1748853040570,-420.0,0.00019178,2]
[363732935,1748853040580,-420.0,0.00019178,2]
[363732937,1748853040589,-572.57,0.00019178,2]
[363732939,1748853040599,-420.0,0.00019178,2]
[363732941,1748853040608,-420.0,0.00019178,2]
[363732943,1748853040617,-420.0,0.00019178,2]
[363732945,1748853040627,-2082.15,0.00019178,2]
[363732947,1748853040636,-420.0,0.00019178,2]
[363732949,1748853040646,-420.0,0.00019178,2]
[363732951,1748853040655,-1644.46,0.00019178,2]
[363732953,1748853040664,-403.08874524,0.00019178,2]
[363732955,1748853040673,-420.0,0.00019178,2]
[363732957,1748853040682,-420.0,0.00019178,2]
[363732959,1748853040692,-352.65136954,0.00019178,2]
[363732961,1748853040702,-420.0,0.00019178,2]
[363732963,1748853040711,-420.0,0.00019178,2]
[363732965,1748853040720,-604.93,0.00019178,2]
[363732967,1748853040730,-420.0,0.00019178,2]
[363732969,1748853040739,-420.0,0.00019178,2]
[363732971,1748853040749,-420.0,0.00019178,2]
[363732973,1748853040758,-420.0,0.00019178,2]
[363732975,1748853040768,-420.0,0.00019178,2]
[363732977,1748853040777,-444.27814091,0.00019178,2]
[363732979,1748853040789,-1460.28,0.00019178,2]
[363732981,1748853040798,-420.0,0.00019178,2]
[363732983,1748853040807,-5378.19,0.00019178,2]
[363732984,1748853040816,-420.0,0.00019178,2]
[363732986,1748853040826,-420.0,0.00019178,2]
[363732988,1748853040835,-420.0,0.00019178,2]
[363732990,1748853040844,-296.59948742,0.00019178,2]
[363732992,1748853040853,-420.0,0.00019178,2]
[363732994,1748853040863,-420.0,0.00019178,2]
[363732996,1748853040873,-420.0,0.00019178,2]
[363732998,1748853040881,-420.0,0.00019178,2]
[363733000,1748853040891,-420.0,0.00019178,2]
[363733002,1748853040900,-783.28,0.00019178,2]
[363733004,1748853040909,-475.07033438,0.00019178,2]
[363733006,1748853040919,-420.0,0.00019178,2]
[363733008,1748853040929,-575.74,0.00019178,2]
[363733010,1748853040938,-420.0,0.00019178,2]
[363733012,1748853040948,-420.0,0.00019178,2]
[363733014,1748853040958,-420.0,0.00019178,2]
[363733016,1748853040967,-885.06,0.00019178,2]
[363733018,1748853040977,-420.0,0.00019178,2]
[363733020,1748853040986,-420.0,0.00019178,2]
[363733022,1748853040996,-368.37552074,0.00019178,2]
[363733024,1748853041006,-420.0,0.00019178,2]
[363733026,1748853041015,-420.0,0.00019178,2]
[363733027,1748853041024,-420.0,0.00019178,2]
[363733030,1748853041034,-420.0,0.00019178,2]
[363733031,1748853041044,-420.0,0.00019178,2]
[363733033,1748853041053,-420.0,0.00019178,2]
[363733035,1748853041063,-641.73,0.00019178,2]
[363733037,1748853041072,-420.0,0.00019178,2]
[363733039,1748853041082,-432.93,0.00019178,2]
[363733041,1748853041090,-420.0,0.00019178,2]
[363733043,1748853041100,-420.0,0.00019178,2]
[363733045,1748853041109,-420.0,0.00019178,2]
[363733047,1748853041119,-203.46,0.00019178,2]
[363733049,1748853041128,-781.54,0.00019178,2]
[363733051,1748853041138,-420.0,0.00019178,2]
[363733053,1748853041147,-420.0,0.00019178,2]
[363733055,1748853041156,-420.0,0.00019178,2]
[363733057,1748853041166,-420.0,0.00019178,2]
[363733059,1748853041175,-420.0,0.00019178,2]
[363733061,1748853041185,-420.0,0.00019178,2]
[363733063,1748853041194,-420.0,0.00019178,2]
[363733065,1748853041203,-1503.73,0.00019178,2]
[363733067,1748853041213,-420.0,0.00019178,2]
[363733069,1748853041222,-420.0,0.00019178,2]
[363733071,1748853041231,-420.0,0.00019178,2]
[363733073,1748853041241,-420.0,0.00019178,2]
[363733075,1748853041251,-420.0,0.00019178,2]
[363733077,1748853041260,-1297.92,0.00019178,2]
[363733079,1748853041270,-420.0,0.00019178,2]
[363733081,1748853041280,-420.0,0.00019178,2]
[363733083,1748853041292,-420.0,0.00019178,2]
[363733085,1748853041302,-420.0,0.00019178,2]
[363733087,1748853041314,-420.0,0.00019178,2]
[363733089,1748853041323,-420.0,0.00019178,2]
[363733091,1748853041333,-602.69,0.00019178,2]
[363733093,1748853041343,-420.0,0.00019178,2]
[363733095,1748853041352,-2431.93,0.00019178,2]
[363733097,1748853041363,-541.98138214,0.00019178,2]
[363733099,1748853041372,-420.0,0.00019178,2]
[363733101,1748853041382,-420.0,0.00019178,2]
[363733103,1748853041392,-761.19,0.00019178,2]
[363733106,1748853041402,-420.0,0.00019178,2]
[363733108,1748853041413,-420.0,0.00019178,2]
[363733109,1748853041422,-420.0,0.00019178,2]
[363733111,1748853041432,-420.0,0.00019178,2]
[363733113,1748853041442,-420.0,0.00019178,2]
[363733115,1748853041451,-420.0,0.00019178,2]
[363733117,1748853041460,-420.0,0.00019178,2]
[363733119,1748853041470,-420.0,0.00019178,2]
[363733121,1748853041480,-420.0,0.00019178,2]
[363733123,1748853041489,-1010.32,0.00019178,2]
[363733125,1748853041499,-420.0,0.00019178,2]
[363733127,1748853041508,-420.0,0.00019178,2]
[363733129,1748853041517,-420.0,0.00019178,2]
[363733131,1748853041527,-9139.5,0.00019178,2]
[363733133,1748853041538,-420.0,0.00019178,2]
[363733135,1748853041547,-1872.83,0.00019178,2]
[363733137,1748853041557,-420.0,0.00019178,2]
[363733139,1748853041566,-420.0,0.00019178,2]
[363733141,1748853041576,-324.42122587,0.00019178,2]
[363733143,1748853041585,-420.0,0.00019178,2]
[363733145,1748853041594,-420.0,0.00019178,2]
[363733147,1748853041603,-420.0,0.00019178,2]
[363733149,1748853041613,-420.0,0.00019178,2]
[363733151,1748853041622,-763.18,0.00019178,2]
[363733153,1748853041631,-420.0,0.00019178,2]
[363733155,1748853041640,-420.0,0.00019178,2]
[363733157,1748853041650,-3366.98,0.00019178,2]
[363733159,1748853041659,-420.0,0.00019178,2]
[363733161,1748853041668,-707.54,0.00019178,2]
[363733163,1748853041678,-420.0,0.00019178,2]
[363733165,1748853041687,-420.0,0.00019178,2]
[363733167,1748853041697,-420.0,0.00019178,2]
[363733169,1748853041707,-637.61,0.00019178,2]
[363733171,1748853041716,-1600.0,0.000192,7]
[363733173,1748853041726,-558.14602101,0.00019215,2]
[363733175,1748853041735,-163.10478396,0.00019252,2]
[363733177,1748853041745,-151.0,0.00019254,2]
[363733179,1748853041754,-151.0,0.00019254,2]
[363733181,1748853041764,-151.0,0.00019254,2]
[363733183,1748853041773,-2400.0,0.000193,7]
[363733185,1748853041783,-225.28,0.00019314,2]
[363733187,1748853041793,-420.0,0.00019315,2]
[363733189,1748853041802,-420.0,0.00019315,2]
[363733191,1748853041811,-420.0,0.00019315,2]
[363733193,1748853041820,-461.99,0.00019315,2]
[363733195,1748853041829,-420.0,0.00019315,2]
[363733197,1748853041838,-420.0,0.00019315,2]
[363733199,1748853041847,-420.0,0.00019315,2]
[363733201,1748853041856,-420.0,0.00019315,2]
[363733203,1748853041867,-420.0,0.00019315,2]
[363733205,1748853041876,-420.0,0.00019315,2]
[363733207,1748853041886,-963.13,0.00019315,2]
[363733209,1748853041895,-420.0,0.00019315,2]
[363733211,1748853041904,-420.0,0.00019315,2]
[363733213,1748853041914,-547.32,0.00019315,2]
[363733215,1748853041923,-164.73980901,0.00019315,2]
[363733217,1748853041932,-420.0,0.00019315,2]
[363733219,1748853041941,-831.74,0.00019315,2]
[363733221,1748853041950,-420.0,0.00019315,2]
[363733222,1748853041959,-420.0,0.00019315,2]
[363733224,1748853041968,-420.0,0.00019315,2]
[363733226,1748853041978,-420.0,0.00019315,2]
[363733228,1748853041987,-420.0,0.00019315,2]
[363733230,1748853041996,-420.0,0.00019315,2]
[363733232,1748853042005,-420.0,0.00019315,2]
[363733234,1748853042014,-420.0,0.00019315,2]
[363733236,1748853042023,-420.0,0.00019315,2]
[363733238,1748853042033,-217.84976527,0.00019315,2]
[363733240,1748853042042,-420.0,0.00019315,2]
[363733242,1748853042051,-420.0,0.00019315,2]
[363733244,1748853042060,-420.0,0.00019315,2]
[363733247,1748853042071,-420.0,0.00019315,2]
[363733248,1748853042080,-210.07,0.00019315,2]
[363733250,1748853042090,-420.0,0.00019315,2]
[363733252,1748853042100,-420.0,0.00019315,2]
[363733254,1748853042109,-420.0,0.00019315,2]
[363733256,1748853042119,-420.0,0.00019315,2]
[363733258,1748853042128,-238.97,0.00019315,2]
[363733260,1748853042138,-420.0,0.00019315,2]
[363733262,1748853042148,-519.61553835,0.00019315,2]
[363733264,1748853042157,-420.0,0.00019315,2]
[363733266,1748853042167,-420.0,0.00019315,2]
[363733268,1748853042176,-420.0,0.00019315,2]
[363733270,1748853042186,-1681.64,0.00019315,2]
[363733272,1748853042196,-420.0,0.00019315,2]
[363733275,1748853042206,-420.0,0.00019315,2]
[363733276,1748853042215,-420.0,0.00019315,2]
[363733278,1748853042225,-420.0,0.00019315,2]
[363733280,1748853042234,-419.58125282,0.00019315,2]
[363733282,1748853042244,-420.0,0.00019315,2]
[363733285,1748853042258,-420.0,0.00019315,2]
[363733287,1748853042267,-519.90533368,0.00019315,2]
[363733289,1748853042277,-420.0,0.00019315,2]
[363733291,1748853042287,-420.0,0.00019315,2]
[363733293,1748853042296,-420.0,0.00019315,2]
[363733294,1748853042306,-420.0,0.00019315,2]
[363733296,1748853042320,-686.48,0.00019315,2]
[363733298,1748853042329,-420.0,0.00019315,2]
[363733300,1748853042339,-526.68,0.00019315,2]
[363733302,1748853042348,-1223.01,0.00019315,2]
[363733304,1748853042358,-535.65,0.00019315,2]
[363733306,1748853042367,-188.78,0.00019315,2]
[363733308,1748853042378,-420.0,0.00019315,2]
[363733310,1748853042389,-420.0,0.00019315,2]
[363733313,1748853042400,-420.0,0.00019315,2]
[363733314,1748853042409,-420.0,0.00019315,2]
[363733316,1748853042418,-420.0,0.00019315,2]
[363733318,1748853042428,-1903.86,0.00019315,2]
[363733320,1748853042437,-1297.59,0.00019315,2]
[363733322,1748853042446,-420.0,0.00019315,2]
[363733324,1748853042455,-420.0,0.00019315,2]
[363733326,1748853042465,-420.0,0.00019315,2]
[363733328,1748853042475,-420.0,0.00019315,2]
[363733330,1748853042484,-420.0,0.00019315,2]
[363733332,1748853042494,-778.18,0.00019315,2]
[363733334,1748853042503,-533.00747578,0.00019315,2]
[363733336,1748853042512,-420.0,0.00019315,2]
[363733338,1748853042522,-420.0,0.00019315,2]
[363733340,1748853042531,-420.0,0.00019315,2]
[363733342,1748853042541,-420.0,0.00019315,2]
[363733344,1748853042552,-420.0,0.00019315,2]
[363733346,1748853042561,-461.16,0.00019315,2]
[363733348,1748853042571,-420.0,0.00019315,2]
[363733350,1748853042580,-420.0,0.00019315,2]
[363733352,1748853042589,-527.2,0.00019315,2]
[363733354,1748853042598,-420.0,0.00019315,2]
[363733356,1748853042607,-420.0,0.00019315,2]
[363733358,1748853042617,-572.57,0.00019315,2]
[363733360,1748853042626,-420.0,0.00019315,2]
[363733362,1748853042635,-420.0,0.00019315,2]
[363733364,1748853042645,-2082.15,0.00019315,2]
[363733366,1748853042654,-420.0,0.00019315,2]
[363733368,1748853042664,-420.0,0.00019315,2]
[363733370,1748853042674,-1644.46,0.00019315,2]
[363733372,1748853042683,-420.0,0.00019315,2]
[363733374,1748853042692,-420.0,0.00019315,2]
[363733376,1748853042702,-604.93,0.00019315,2]
[363733378,1748853042711,-420.0,0.00019315,2]
[363733380,1748853042722,-420.0,0.00019315,2]
[363733382,1748853042731,-420.0,0.00019315,2]
[363733384,1748853042740,-1460.28,0.00019315,2]
[363733386,1748853042750,-5378.19,0.00019315,2]
[363733388,1748853042759,-420.0,0.00019315,2]
[363733390,1748853042769,-154.80658756,0.00019315,2]
[363733392,1748853042778,-508.4,0.00019315,2]
[363733394,1748853042788,-420.0,0.00019315,2]
[363733396,1748853042798,-420.0,0.00019315,2]
[363733398,1748853042807,-420.0,0.00019315,2]
[363733400,1748853042817,-783.28,0.00019315,2]
[363733402,1748853042827,-420.0,0.00019315,2]
[363733404,1748853042836,-575.74,0.00019315,2]
[363733406,1748853042846,-296.08842008,0.00019315,2]